[Event "26th Womens ECCC 2022"]
[Site "Mayrhofen"]
[Date "2022.10.04"]
[Round "2.7"]
[White "Wagner, Dinara"]
[Black "Atalik, Ekaterina"]
[Result "1-0"]
[ECO "E10"]
[WhiteElo "2390"]
[BlackElo "2406"]
[Annotator "TA"]
[PlyCount "79"]
[EventDate "2022.10.03"]
[EventType "team-tourn"]
[EventCountry "AUT"]
[SourceTitle "playchess.com"]
[Source "ChessBase"]
[SourceQuality "1"]
[TimeControl "40/5400+30:1800+30"]

{[%evp 18,79,23,14,14,8,25,18,52,59,109,66,118,53,106,17,10,24,14,0,0,0,0,0,0,0,0,0,22,22,15,15,34,32,25,42,26,0,0,0,0,0,0,0,0,0,0,0,0,-64,-23,-47,0,0,0,0,0,0,0,0,0,0,0,0]} 1. d4 {[%emt 0:00:03]} Nf6 {[%emt 0:00:13]} 2. c4 {[%emt 0:00:05]} e6 {[%emt 0:00:12]} 3. Nf3 {[%emt 0:00:07]} d5 {[%emt 0:00:23]} 4. g3 {[%emt 0:00:05]} Bb4+ {[%emt 0:00:31]} 5. Bd2 {[%emt 0:00:19]} Be7 {[%emt 0:00:27]} 6. Bg2 {[%emt 0:00:06]} O-O {[%emt 0:00:41]} 7. O-O {[%emt 0:00:09]} Nbd7 {[%emt 0:00:49]} 8. Qc2 {[%emt 0:00:23]} Ne4 {[%emt 0:00:49]} 9. Bf4 $1 {[%emt 0:03:22] 9.Bf4 is better than 9.Nc3.} c6 {[%emt 0:00:43]} 10. Nc3 {[%emt 0:00:16]} g5 {[%emt 0:01:59] [#] aiming for ...Nxc3. E08: Closed Catalan: Main Line: 7 Qc2.} 11. Be3 {[%emt 0:00:07]} f5 {[%emt 0:00:52]} (11... Nd6 $5 {[%cal Rd6c4]}) 12. Rad1 {[%emt 0:03:55]} Bf6 {[%emt 0:10:40]} 13. Nxe4 {[%emt 0:09:42]} fxe4 {[%emt 0:04:53]} (13... dxe4 $14 14. Ne5 Qe7) 14. Ne5 {[%emt 0:01:44]} Qe7 {[%emt 0:03:56] [#]} (14... Nxe5 $14 15. dxe5 Bxe5) 15. f3 $146 {[%emt 0:03:02] White has more active pieces.} (15. Ng4 $16) ({Predecessor:} 15. Ng4 Bg7 16. Qc1 Rf5 17. f3 h5 18. fxe4 Rxf1+ 19. Rxf1 hxg4 20. cxd5 exd5 21. exd5 {0-1 (32) Pektas,Y (2152)-Garayev,K (2339) Konya 2022}) 15... exf3 {[%emt 0:03:26]} (15... Nxe5 $14 16. dxe5 Bxe5) 16. Rxf3 {[%emt 0:06:54]} ({Better is} 16. Nxf3 $16 Kh8 17. Bh3) 16... Nxe5 $11 {[%emt 0:12:02]} 17. dxe5 {[%emt 0:00:12]} Bxe5 {[%emt 0:00:24]} 18. cxd5 {[%emt 0:21:28]} exd5 {[%emt 0:04:06]} 19. Bc5 {[%emt 0:01:40]} Bd6 {[%emt 0:00:36]} 20. Bxd6 {[%emt 0:06:47]} Qxd6 {[%emt 0:01:07]} 21. Rxf8+ {[%emt 0:00:02]} Qxf8 {[%emt 0:00:18]} 22. e4 $1 {[%emt 0:00:02]} d4 {[%emt 0:34:41]} 23. Qc4+ {[%emt 0:01:52]} Qf7 {[%emt 0:00:05]} 24. Qxd4 {[%emt 0:02:32] [#] And now Qd8+ would win.} Bg4 {[%emt 0:02:11]} 25. Rf1 {[%emt 0:04:39]} Qe7 {[%emt 0:00:31]} 26. e5 {[%emt 0:04:16]} Be6 {[%emt 0:05:49]} 27. Rf6 {[%emt 0:01:55]} Bxa2 {[%emt 0:04:35]} 28. Qe3 {[%emt 0:17:11]} Re8 {[%emt 0:01:34] White must now prevent ...Qxf6.} 29. Qxg5+ {[%emt 0:02:26]} Kh8 {[%emt 0:00:26]} 30. h4 {[%emt 0:02:57]} Bg8 {[%emt 0:01:34]} 31. e6 {[%emt 0:06:30]} Bxe6 {[%emt 0:00:06]} 32. Qe5 {[%emt 0:00:37][%cal Rf6f8]} Kg8 {[%emt 0:00:22] Against Rf8+} 33. h5 {[%emt 0:00:38]} ({White should try} 33. Be4 $11 Bg4 34. Qg5+ Kh8 35. Qf4) 33... Bb3 {[%emt 0:03:04]} 34. Qg5+ {[%emt 0:00:21]} Qg7 {[%emt 0:00:45]} (34... Kh8 $15) 35. Qf4 {[%emt 0:00:49] The position is equal.} Rf8 {[%emt 0:01:27]} 36. Rxf8+ {[%emt 0:00:19]} Qxf8 {[%emt 0:00:04]} 37. Qe3 {[%emt 0:00:10][%csl LRa7,LRb3]} Bf7 {[%emt 0:01:24]} 38. Qxa7 {[%emt 0:00:36]} Bxh5 {[%emt 0:00:23]} 39. Qxb7 {[%emt 0:00:14]} Qc5+ {[%emt 0:00:58]} 40. Kh2 {[%emt 0:00:08][%mdl 32768] Weighted Error Value: White=0.15 (very precise) /Black=0.14 (very precise) . Sensor Board Error (Ke4/e5)?} 1-0

[Event "26th Womens ECCC 2022"]
[Site "Mayrhofen"]
[Date "2022.10.04"]
[Round "2.8"]
[White "Efroimski, Marsel"]
[Black "Heinemann, Josefine"]
[Result "1-0"]
[ECO "C77"]
[WhiteElo "2462"]
[BlackElo "2318"]
[Annotator "TA"]
[PlyCount "111"]
[EventDate "2022.10.03"]
[EventType "team-tourn"]
[EventCountry "AUT"]
[SourceTitle "playchess.com"]
[Source "ChessBase"]
[SourceQuality "1"]
[TimeControl "40/5400+30:1800+30"]

{[%evp 11,111,7,10,20,52,45,48,27,56,20,23,27,29,27,30,30,16,-14,74,66,71,73,54,68,57,75,63,17,43,41,66,50,58,58,58,58,58,56,176,173,172,148,163,154,162,158,153,160,145,156,148,93,137,137,127,118,126,118,190,190,196,195,179,170,296,296,1514,2130,2219,1924,1689,1458,1385,1321,2301,2290,2215,2130,2068,2021,1865,1720,1086,961,1780,1653,1441,1183,1991,1658,29965,29966,29977,29978,29978,29979,29979,29979,29979,29979,29979,29974]} 1. e4 {[%emt 0:00:01]} e5 {[%emt 0:00:07]} 2. Nf3 {[%emt 0:00:04]} Nc6 {[%emt 0:00:06]} 3. Bb5 {[%emt 0:00:04][%cal Bf1b5,Bb5a4,Ba4b3,Bb3d5][%mdl 32]} a6 {[%emt 0:00:10]} 4. Ba4 {[%emt 0:00:04]} Nf6 {[%emt 0:00:23]} 5. Nc3 {[%emt 0:00:04]} b5 {[%emt 0:03:34]} 6. Bb3 {[%emt 0:00:05]} Bc5 {[%emt 0:00:40]} 7. Nd5 {[%emt 0:00:04] C77: Ruy Lopez: 3...a6 4 Ba4 Nf6, unusual lines.} d6 {[%emt 0:04:21]} 8. c3 {[%emt 0:00:50]} h6 {[%emt 0:04:11]} 9. d4 {[%emt 0:02:44] White is slightly better.} Ba7 {[%emt 0:04:10]} 10. Nxf6+ {[%emt 0:01:29]} Qxf6 {[%emt 0:00:20]} 11. Bd5 {[%emt 0:00:07]} Bd7 {[%emt 0:12:19][%cal Re5d4]} 12. a4 {[%emt 0:01:04]} O-O {[%emt 0:13:22][%cal Re5d4] [#]} 13. axb5 $146 {[%emt 0:02:11]} ({Predecessor:} 13. Be3 Bb6 14. O-O Rad8 15. axb5 axb5 16. dxe5 dxe5 17. Bxb6 cxb6 18. Qe2 Ne7 19. Qe3 {0-1 (45) Perunovic,M (2567)-Pranav,V (2366) Belgrade 2021}) 13... axb5 {[%emt 0:00:27][%cal Re5d4]} 14. Be3 {[%emt 0:00:08] Black must now prevent Bxc6.} Qe7 {[%emt 0:08:19]} (14... exd4 $11 {keeps the balance.} 15. cxd4 Bb6) 15. O-O $16 {[%emt 0:03:30] White has more active pieces.} Bb6 {[%emt 0:13:41]} 16. Rxa8 {[%emt 0:08:57]} Rxa8 {[%emt 0:00:39]} 17. dxe5 {[%emt 0:00:15]} dxe5 {[%emt 0:01:10]} 18. Bxb6 {[%emt 0:00:26]} ({Worse is} 18. Nxe5 Qxe5 19. Bxf7+ Kxf7 $17) 18... cxb6 {[%emt 0:00:03]} 19. b4 {[%emt 0:11:00]} ({Stronger than} 19. Nxe5 Qxe5 20. Bxf7+ Kxf7 $17) (19. Qd2 $14 {is superior.}) 19... Rc8 {[%emt 0:03:18]} 20. Qd3 {[%emt 0:03:59]} Nd8 {[%emt 0:04:44]} 21. h3 {[%emt 0:13:17]} Ne6 {[%emt 0:06:37]} 22. Nxe5 {[%emt 0:05:40] aiming for f4.} Nf4 {[%emt 0:03:42][%csl LRd3,LRe5]} 23. Bxf7+ {[%emt 0:00:31]} Qxf7 {[%emt 0:00:05]} 24. Qxd7 {[%emt 0:00:20]} Ne2+ {[%emt 0:00:57]} (24... Qxd7 $14 25. Nxd7 Rxc3) 25. Kh2 $18 {[%emt 0:00:21]} Qxd7 {[%emt 0:04:41]} 26. Nxd7 {[%emt 0:00:29]} Nxc3 {[%emt 0:00:11]} 27. Nxb6 {[%emt 0:04:50][%mdl 4096] Endgame KRN-KRN} Rb8 {[%emt 0:00:24]} 28. Nd7 {[%emt 0:01:11]} Rd8 {[%emt 0:00:47]} 29. Nc5 {[%emt 0:00:10]} Rd4 {[%emt 0:00:18]} 30. f3 {[%emt 0:16:19]} Rxb4 {[%emt 0:00:12] [#]} 31. Rc1 {[%emt 0:00:28]} (31. Ra1 $142 $1) 31... Ne2 {[%emt 0:03:09]} 32. Nd3 {[%emt 0:02:26] Threatens to win with Rc8+.} Rd4 {[%emt 0:01:51]} 33. Rc2 {[%emt 0:03:42]} Rxd3 {[%emt 0:00:39]} 34. Rxe2 $16 {[%emt 0:00:04] Hoping for Rb2. KR-KR} b4 {[%emt 0:00:05]} (34... Rd7 $16 {was worth a try.} 35. Kg3 Kf7) 35. Rb2 $18 {[%emt 0:00:48]} b3 {[%emt 0:00:04] [#]} 36. Kg1 $1 {[%emt 0:00:14]} Rc3 {[%emt 0:00:34]} 37. Kf1 {[%emt 0:00:06]} Rc2 {[%emt 0:06:03]} (37... h5 $142 38. Ke2 h4) 38. Rxb3 {[%emt 0:00:51]} g5 $2 {[%emt 0:00:04]} (38... Kf7 39. Rb6 Ke7) 39. Rb7 {[%emt 0:03:39]} Ra2 {[%emt 0:00:38] Prevents Ra7.} 40. Kg1 {[%emt 0:00:33]} Rc2 {[%emt 0:00:22]} 41. Kh2 {[%emt 0:31:54]} Ra2 {[%emt 0:31:24]} 42. h4 {[%emt 0:00:22]} gxh4 {[%emt 0:01:45]} 43. Kh3 {[%emt 0:00:21]} Re2 {[%emt 0:00:45]} 44. Re7 {[%emt 0:00:09]} Rf2 {[%emt 0:00:35]} 45. Re5 {[%emt 0:03:31]} Kg7 {[%emt 0:00:00]} 46. Rh5 {[%emt 0:00:00]} Kg6 {[%emt 0:00:00]} 47. Rxh4 {[%emt 0:00:00]} h5 {[%emt 0:00:00]} 48. Rf4 {[%emt 0:00:00]} Ra2 {[%emt 0:00:00]} 49. Rf8 {[%emt 0:00:00]} Re2 {[%emt 0:00:00]} 50. Rg8+ {[%emt 0:00:00]} Kh6 {[%emt 0:00:00]} 51. g4 {[%emt 0:00:00] White mates.} hxg4+ {[%emt 0:00:00]} 52. Rxg4 {[%emt 0:00:00]} Ra2 {[%emt 0:00:00]} 53. Kg3 {[%emt 0:00:00]} Ra8 {[%emt 0:00:00]} 54. Kf4 {[%emt 0:00:00]} Rf8+ {[%emt 0:00:00]} 55. Ke3 {[%emt 0:00:00]} Ra8 {[%emt 0:00:00]} 56. e5 {[%emt 0:00:00] Weighted Error Value: White=0.07 (flawless) /Black=0.28 (precise)} 1-0

[Event "26th Womens ECCC 2022"]
[Site "Mayrhofen"]
[Date "2022.10.04"]
[Round "2.9"]
[White "Danielian, Elina"]
[Black "Sukandar, Irine Kharisma"]
[Result "1/2-1/2"]
[ECO "D02"]
[WhiteElo "2431"]
[BlackElo "2401"]
[Annotator "TA"]
[PlyCount "165"]
[EventDate "2022.10.03"]
[EventType "team-tourn"]
[EventCountry "AUT"]
[SourceTitle "playchess.com"]
[Source "ChessBase"]
[SourceQuality "1"]
[TimeControl "40/5400+30:1800+30"]

{[%evp 9,165,1,18,9,17,18,28,26,22,33,29,29,35,31,30,25,38,39,33,29,36,52,44,35,38,31,33,37,30,22,27,36,48,39,42,49,46,46,39,49,69,73,64,60,96,100,118,55,67,69,86,65,72,95,110,88,90,37,78,83,79,79,81,66,66,64,79,33,79,36,103,44,109,115,140,129,182,160,160,108,114,107,140,107,114,104,104,104,104,99,99,99,99,99,99,99,122,138,129,99,102,100,100,101,100,102,103,64,95,56,92,56,95,95,113,108,129,92,119,119,128,105,105,0,118,88,203,202,191,108,157,0,0,0,0,0,0,0,338,313,310,301,236,0,0,0,0,0,0,0,0,0,0,0,0,0,0,0]} 1. d4 {[%emt 0:00:03]} d5 {[%emt 0:00:26]} 2. Nf3 {[%emt 0:00:08]} Nf6 {[%emt 0:00:22]} 3. c4 {[%emt 0:00:05]} e6 {[%emt 0:00:13]} 4. e3 {[%emt 0:00:06]} a6 {[%emt 0:07:28]} 5. Nbd2 {[%emt 0:03:34]} Be7 {[%emt 0:13:38]} 6. Bd3 {[%emt 0:03:39] D30: Queen's Gambit Declined: Systems without Nc3.} O-O {[%emt 0:00:38]} 7. O-O {[%emt 0:03:29]} c5 {[%emt 0:01:08]} 8. dxc5 {[%emt 0:05:48] White has an edge.} Bxc5 {[%emt 0:01:22] [#]} 9. Qc2 $146 {[%emt 0:01:51]} ({Predecessor:} 9. a3 a5 10. b3 Nc6 11. Bb2 Qe7 12. Qc2 dxc4 13. Nxc4 h6 14. Nfe5 Nxe5 15. Nxe5 {1-0 (68) Saeed,I (2312)-Perez Ponsa,F (2585) Doha 2016}) 9... Nbd7 {[%emt 0:06:25]} 10. cxd5 {[%emt 0:07:53]} exd5 {[%emt 0:00:07]} 11. b3 {[%emt 0:00:04]} b6 {[%emt 0:07:43]} 12. Bb2 {[%emt 0:02:11]} Bb7 {[%emt 0:00:46]} 13. Rac1 {[%emt 0:00:30]} Re8 {[%emt 0:01:08]} 14. Bf5 {[%emt 0:11:05]} h6 {[%emt 0:07:34]} 15. Rfd1 {[%emt 0:00:53]} Qe7 {[%emt 0:00:35]} 16. Qb1 {[%emt 0:05:47]} Rad8 {[%emt 0:05:48]} 17. Qa1 {[%emt 0:05:54]} g6 {[%emt 0:02:09]} 18. Bxd7 {[%emt 0:05:06]} Nxd7 {[%emt 0:00:06]} 19. Nf1 {[%emt 0:00:38][%cal Bd2f1,Bf1g3,Bg3e2][%mdl 32]} (19. Bh8 $2 f6 20. b4 Bd6 21. Bxf6 Qxf6 $19) 19... Rc8 {[%emt 0:01:38]} 20. Ng3 {[%emt 0:01:07]} (20. Bh8 $2 f6 21. Qb1 Qf7 22. Bxf6 Nxf6 $19) 20... a5 {[%emt 0:02:49]} 21. h3 {[%emt 0:07:05]} (21. Bh8 $2 f6 22. Qb1 Qf7 23. Bxf6 Nxf6 $19) 21... a4 {[%emt 0:05:01]} 22. Qb1 {[%emt 0:01:03]} (22. Bh8 $2 f6 23. Bxf6 Nxf6 $19) 22... a3 {[%emt 0:04:06]} 23. Ba1 {[%emt 0:03:53]} Bd6 {[%emt 0:04:24]} 24. Ne2 {[%emt 0:00:31]} d4 {[%emt 0:06:37]} 25. Rxc8 {[%emt 0:11:17]} (25. Rxd4 $6 Be4 26. Rxc8 Bxb1 $11) (25. Bxd4 Rxc1 26. Nxc1 (26. Qxc1 Rc8 $11) (26. Rxc1 Be4 $14) 26... Bxf3 27. gxf3 Qh4 $11) 25... Rxc8 {[%emt 0:00:04]} 26. Rxd4 {[%emt 0:02:00]} (26. Bxd4 Be4 27. Qa1 Bxf3 28. gxf3 Qg5+ 29. Kf1 Qh4 $17) 26... Ne5 {[%emt 0:02:06]} 27. Ne1 {[%emt 0:05:36]} Nc6 {[%emt 0:03:25]} 28. Rd1 {[%emt 0:08:45]} (28. Rd2 $1 $16) 28... Nb4 $14 {[%emt 0:00:36]} 29. Rd2 {[%emt 0:00:43]} Be5 {[%emt 0:10:39]} 30. Qd1 {[%emt 0:02:35]} Bxa1 {[%emt 0:01:54]} 31. Qxa1 {[%emt 0:00:03]} Qe4 {[%emt 0:00:54]} 32. Ng3 {[%emt 0:02:18]} Qc6 {[%emt 0:00:35]} 33. Qd4 {[%emt 0:00:45]} (33. Kh2 $16) 33... Qc3 {[%emt 0:04:03]} 34. Qxc3 {[%emt 0:00:26]} Rxc3 {[%emt 0:00:01]} 35. Ne2 {[%emt 0:00:09] Against Rc1} Rc7 {[%emt 0:00:28]} 36. f3 {[%emt 0:00:28]} Ba6 {[%emt 0:00:31]} 37. Kf2 {[%emt 0:00:23]} Kg7 {[%emt 0:00:40]} 38. h4 {[%emt 0:00:12]} (38. Nd4 $16) 38... h5 {[%emt 0:00:37]} (38... Bxe2 $14 39. Kxe2 Rc3) 39. e4 {[%emt 0:00:29]} Kf8 {[%emt 0:00:41]} (39... Bxe2 $14 40. Kxe2 Kf6) 40. Ke3 {[%emt 0:00:35]} (40. Nd4 $16) 40... Ke8 {[%emt 0:00:19]} ({Black should try} 40... Bxe2 $14 41. Kxe2 Rc1) 41. Nd4 $1 $16 {[%emt 0:12:58]} Rc3+ {[%emt 0:06:16]} 42. Kf4 {[%emt 0:03:53]} Bf1 {[%emt 0:08:21]} (42... f6 $16 43. Kg3 Ke7) 43. Nec2 $18 {[%emt 0:03:24]} Nxa2 {[%emt 0:01:17]} 44. Nxa3 {[%emt 0:00:02]} ({Wrong is} 44. Ne3 $2 Nc1 45. Nxf1 a2 46. Rxa2 Nxa2 $19) (44. Rd1 $142 $1 {[%cal Rd1f1]} Bd3 45. Ra1 (45. Nxa3 Kf8 $14) 45... Bxc2 46. Rxa2) 44... Nc1 $16 {[%emt 0:00:45]} 45. Rc2 {[%emt 0:06:14]} Rc5 {[%emt 0:04:07]} 46. Ke3 {[%emt 0:02:41]} Nd3 {[%emt 0:04:54]} 47. g3 {[%emt 0:04:41]} Nb4 {[%emt 0:01:35]} 48. Rxc5 {[%emt 0:00:11]} bxc5 {[%emt 0:00:02][%mdl 4096] Endgame KBN-KNN} 49. Ndc2 {[%emt 0:00:47]} Nc6 {[%emt 0:00:23]} 50. Nc4 {[%emt 0:00:39]} Ke7 {[%emt 0:02:58] Against Nd6} 51. Kf2 {[%emt 0:00:45]} Bd3 {[%emt 0:00:28]} 52. N2e3 {[%emt 0:00:05]} Nd4 {[%emt 0:00:52]} 53. Nd5+ {[%emt 0:00:18]} Kf8 {[%emt 0:01:20]} 54. Ne5 {[%emt 0:00:41] Pair of Knights!} Bb5 {[%emt 0:01:16]} 55. b4 $1 {[%emt 0:00:31]} cxb4 {[%emt 0:00:27]} 56. Nxb4 {[%emt 0:00:01]} Kg7 {[%emt 0:00:42]} 57. Ke3 {[%emt 0:00:14]} Ne6 {[%emt 0:00:26]} 58. f4 {[%emt 0:00:15]} Bf1 {[%emt 0:01:07]} 59. Nd5 {[%emt 0:00:48] Strongly threatening f5.} Bg2 {[%emt 0:00:25]} 60. Nc3 {[%emt 0:00:14]} Nc5 {[%emt 0:00:48]} 61. Nc4 {[%emt 0:01:16]} Bf1 {[%emt 0:00:24]} 62. Nd2 {[%emt 0:00:12]} Ba6 {[%emt 0:00:20]} 63. Nf3 {[%emt 0:00:09]} Nd7 {[%emt 0:00:48]} 64. Nd5 {[%emt 0:00:57]} Nc5 {[%emt 0:00:37]} 65. Kd4 {[%emt 0:00:48]} Nb3+ {[%emt 0:01:33]} 66. Ke3 {[%emt 0:00:41]} Nc5 {[%emt 0:00:10]} 67. f5 {[%emt 0:00:24]} Bb7 {[%emt 0:00:38]} (67... gxf5 $16 68. exf5 Nd7) 68. fxg6 $18 {[%emt 0:00:34]} f5 {[%emt 0:00:49]} 69. Nf4 {[%emt 0:00:54]} (69. Nd4 $18) 69... Nxe4 $16 {[%emt 0:00:25]} 70. Nxh5+ $2 {[%emt 0:00:09]} ({White should play} 70. Ne5 $1 $16) 70... Kxg6 $11 {[%emt 0:00:13]} 71. Nf4+ {[%emt 0:00:06]} Kh6 {[%emt 0:00:52]} 72. Ne2 {[%emt 0:00:09]} Ba6 {[%emt 0:00:28]} 73. Nfd4 {[%emt 0:00:09]} Kg6 $2 {[%emt 0:00:59][%mdl 8192] [#]} (73... Kh5 $1 $11 {and Black stays safe.}) 74. Nf4+ $1 $18 {[%emt 0:00:16]} Kf6 {[%emt 0:00:03]} 75. g4 $1 {[%emt 0:00:38]} Bc8 {[%emt 0:00:30] [#]} 76. g5+ $2 {[%emt 0:01:10]} ({Worse is} 76. Nxf5 Bxf5 77. Nh5+ (77. gxf5 Kxf5 78. h5 Nf6 $11) 77... Kg6 $11) (76. Nc6 $1 $18) 76... Nxg5 $1 $11 {[%emt 0:00:36] The position is equal.} 77. Nd5+ {[%emt 0:00:03]} Ke5 {[%emt 0:00:46]} 78. hxg5 {[%emt 0:00:46] And now Nf4 would win.} Kxd5 {[%emt 0:00:17]} 79. g6 {[%emt 0:00:05] Hoping for g7.} f4+ {[%emt 0:00:23]} 80. Kd3 {[%emt 0:00:53] Black must now prevent g7.} Be6 {[%emt 0:00:16]} 81. g7 {[%emt 0:00:26]} Bg8 {[%emt 0:00:07]} 82. Nf3 {[%emt 0:00:58]} Ke6 {[%emt 0:00:16]} 83. Ke4 {[%emt 0:00:06] Weighted Error Value: White=0.11 (very precise) /Black=0.12 (very precise)} 1/2-1/2

[Event "26th Womens ECCC 2022"]
[Site "Mayrhofen"]
[Date "2022.10.04"]
[Round "2.10"]
[White "Houska, Jovanka"]
[Black "Ushenina, Anna"]
[Result "1/2-1/2"]
[ECO "D26"]
[WhiteElo "2354"]
[BlackElo "2445"]
[Annotator "TA"]
[PlyCount "81"]
[EventDate "2022.10.03"]
[EventType "team-tourn"]
[EventCountry "AUT"]
[SourceTitle "playchess.com"]
[Source "ChessBase"]
[SourceQuality "1"]
[TimeControl "40/5400+30:1800+30"]

{[%evp 25,81,28,23,23,25,22,26,24,23,22,20,10,13,5,10,10,16,7,10,10,10,16,17,18,17,15,17,3,4,9,3,0,0,0,0,6,4,0,0,0,0,0,0,0,0,0,0,0,0,0,24,0,0,0,17,0,0,0]} 1. d4 {[%emt 0:00:03]} d5 {[%emt 0:00:20]} 2. c4 {[%emt 0:00:11]} dxc4 {[%emt 0:00:09]} 3. e3 {[%emt 0:00:16]} Nf6 {[%emt 0:02:44]} 4. Bxc4 {[%emt 0:00:11]} e6 {[%emt 0:00:02]} 5. Nf3 {[%emt 0:00:13]} c5 {[%emt 0:00:05]} 6. O-O {[%emt 0:00:28]} Nc6 {[%emt 0:00:04]} 7. a3 {[%emt 0:01:33]} a6 {[%emt 0:04:09]} 8. dxc5 {[%emt 0:00:10]} Qxd1 {[%emt 0:00:54]} 9. Rxd1 {[%emt 0:00:06]} Bxc5 {[%emt 0:00:02]} 10. b4 {[%emt 0:02:14]} Be7 {[%emt 0:11:19]} 11. Bb2 {[%emt 0:00:27]} b5 {[%emt 0:02:57]} 12. Be2 {[%emt 0:01:25]} Bb7 {[%emt 0:00:09]} 13. Nbd2 {[%emt 0:00:58]} O-O {[%emt 0:05:35]} 14. Rac1 {[%emt 0:02:56] D27: Queen's Gambit Accepted: Classical main line: 7 e4!? and 7 a4.} Rfd8 {[%emt 0:10:18]} 15. Nb3 {[%emt 0:05:39]} Rxd1+ {[%emt 0:01:14]} 16. Bxd1 {[%emt 0:01:05] White has an edge.} Nd7 {[%emt 0:18:38]} 17. Nfd2 {[%emt 0:11:19][%cal Bf3d2,Bd2e4,Be4c3][%mdl 32]} Rc8 {[%emt 0:00:45]} 18. Bf3 {[%emt 0:01:52] [#]} Kf8 $146 {[%emt 0:04:58]} ({Predecessor:} 18... f6 19. Ne4 Kf8 20. Nec5 Nxc5 21. Nxc5 Bxc5 22. Rxc5 Nd8 23. Rxc8 Bxc8 24. Be4 Kf7 {½-½ (33) Drozdovskij,Y (2620)-Anastasian,A (2566) Abu Dhabi 2009}) 19. Kf1 {[%emt 0:03:36]} g6 {[%emt 0:06:56]} 20. g3 {[%emt 0:17:35]} h5 {[%emt 0:00:28]} 21. h4 {[%emt 0:02:27]} Bd6 {[%emt 0:15:33]} 22. Ne4 {[%emt 0:11:52]} Be5 {[%emt 0:00:29]} 23. Bxe5 {[%emt 0:10:38]} Ncxe5 {[%emt 0:00:05]} 24. Rxc8+ {[%emt 0:00:24]} Bxc8 {[%emt 0:00:02]} 25. Be2 {[%emt 0:03:11] next Nd6 is good for White.} Bb7 {[%emt 0:03:31]} 26. Nc3 {[%emt 0:03:38]} Bf3 {[%emt 0:03:43]} 27. Bxf3 {[%emt 0:01:38]} Nxf3 $11 {[%emt 0:00:02][%mdl 4096] Endgame KNN-KNN} 28. a4 {[%emt 0:01:15]} bxa4 {[%emt 0:00:21]} 29. Nxa4 {[%emt 0:00:04]} Nfe5 {[%emt 0:00:34]} 30. Nac5 {[%emt 0:01:52]} Nb8 $1 {[%emt 0:00:04]} 31. Nd4 {[%emt 0:00:11]} Ke7 {[%emt 0:00:23]} 32. Ke2 {[%emt 0:09:33]} Kd6 {[%emt 0:01:06]} 33. Kd2 {[%emt 0:00:51]} Ng4 {[%emt 0:03:05]} 34. f3 {[%emt 0:02:46]} Nf6 {[%emt 0:00:15]} 35. e4 {[%emt 0:00:41]} Nfd7 {[%emt 0:03:23]} 36. Ndb3 {[%emt 0:02:57]} e5 {[%emt 0:01:18]} 37. Kc3 {[%emt 0:01:00]} Kc6 {[%emt 0:01:16]} 38. Kc4 {[%emt 0:00:33]} Nb6+ {[%emt 0:00:07] The position is equal.} 39. Kc3 {[%emt 0:00:05]} N6d7 {[%emt 0:00:46]} 40. Kc4 {[%emt 0:00:37]} Nb6+ {[%emt 0:00:03]} 41. Kc3 {[%emt 0:30:02] Not much happened in this game.  Weighted Error Value: White=0.03 (flawless) /Black=0.01 (flawless)} 1/2-1/2

[Event "26th Womens ECCC 2022"]
[Site "Mayrhofen"]
[Date "2022.10.04"]
[Round "2.11"]
[White "Osmak, Yuliia"]
[Black "Arakhamia-Grant, Ketevan"]
[Result "1-0"]
[ECO "E73"]
[WhiteElo "2428"]
[BlackElo "2333"]
[Annotator "TA"]
[PlyCount "53"]
[EventDate "2022.10.03"]
[EventType "team-tourn"]
[EventCountry "AUT"]
[SourceTitle "playchess.com"]
[Source "ChessBase"]
[SourceQuality "1"]
[TimeControl "40/5400+30:1800+30"]

{[%evp 13,53,50,68,53,50,54,55,0,6,0,0,0,82,80,74,79,152,136,206,245,327,332,366,353,358,358,489,489,532,526,1648,1527,1636,1571,2332,2131,2381,2416,1826,1260,1852,1794]} 1. d4 {[%emt 0:00:03]} Nf6 {[%emt 0:00:08]} 2. c4 {[%emt 0:00:04]} g6 {[%emt 0:00:10]} 3. Nc3 {[%emt 0:00:04]} Bg7 {[%emt 0:00:15]} 4. e4 {[%emt 0:00:06]} d6 {[%emt 0:00:07]} 5. Be2 {[%emt 0:00:09]} O-O {[%emt 0:00:29]} 6. Be3 {[%emt 0:00:14]} e5 {[%emt 0:00:48]} 7. d5 {[%emt 0:00:14]} Na6 {[%emt 0:00:50]} 8. g4 {[%emt 0:00:32] White is more active. E73: King's Indian: Averbakh Variation without 6...c5.} Nc5 {[%emt 0:01:10]} 9. f3 {[%emt 0:00:11][%cal Bf2f3,Bf3g4,Bg4g5][%mdl 32]} h5 {[%emt 0:02:34] now supersedes 9...a5.} 10. h4 {[%emt 0:01:18]} (10. g5 $14) 10... hxg4 $11 {[%emt 0:02:21]} 11. b4 {[%emt 0:02:16]} Na6 {[%emt 0:06:27] Strongly threatening ...g3.} 12. fxg4 {[%emt 0:21:34]} Nxb4 {[%emt 0:01:16]} (12... Qd7 $1 $11 {keeps the balance.}) 13. h5 $1 $16 {[%emt 0:01:10] [#]} Nh7 $146 {[%emt 0:09:51]} ({Predecessor:} 13... c6 14. g5 Nh7 15. hxg6 fxg6 16. c5 Qa5 17. Qb3 cxd5 18. a3 dxc5 19. Bd2 Qb6 {0-1 (35) Schekachikhin,M (2448)-Sargsyan,S (2640) Tsaghkadzor 2021}) 14. Qd2 {[%emt 0:14:21][%mdl 1024] White has strong compensation.} a5 {[%emt 0:29:56] [#]} ({Black should play} 14... gxh5 15. Rxh5 Na6) 15. g5 $1 {[%emt 0:14:27]} ({Reject} 15. a3 $6 Na6 $11) 15... b6 {[%emt 0:17:36] [#]} (15... Rb8 $16) 16. O-O-O $1 $18 {[%emt 0:05:53]} Qe7 {[%emt 0:00:37]} 17. Nf3 {[%emt 0:00:55]} Rd8 {[%emt 0:07:09]} 18. Nh4 {[%emt 0:02:34]} Nf8 {[%emt 0:00:18]} (18... gxh5 19. Bxh5 Qd7 20. Rdf1 $18) 19. Rdf1 {[%emt 0:00:57]} Bd7 {[%emt 0:02:25]} 20. Bd1 {[%emt 0:10:10] White is clearly winning.} Rdb8 {[%emt 0:07:40]} 21. h6 {[%emt 0:06:57]} Bh8 {[%emt 0:00:29]} 22. h7+ {[%emt 0:00:13]} Nxh7 {[%emt 0:04:26]} 23. Qh2 {[%emt 0:00:08][%cal Oh4f5] White threatens Nf5! and mate.} f5 {[%emt 0:00:57]} 24. gxf6 {[%emt 0:04:09]} Bxf6 {[%emt 0:00:41]} 25. Nxg6 {[%emt 0:00:23]} Qg7 {[%emt 0:03:04]} 26. Rhg1 {[%emt 0:00:47][%cal Og6e7] Ne7+! would kill now.} Re8 {[%emt 0:01:03] Inhibits Ne7+.} 27. Bh6 {[%emt 0:00:47] Weighted Error Value: White=0.04 (flawless) /Black=0.47} 1-0